[Event "*** Titled Tuesday Blitz"]
[Site "Chess.com"]
[Date "2020.11.03"]
[Round "10"]
[White "MYMChessAcademy"]
[Black "Michaelson_11"]
[Result "0-1"]
[WhiteElo "2051"]
[BlackElo "2147"]
[TimeControl "180+1"]
[EndTime "11:58:36 PST"]
[Termination "Michaelson_11 won by checkmate"]

1. e4 {[%clk 0:03:00.9]} 1... c5 {[%clk 0:02:58.6]} 2. Nf3 {[%clk 0:03:00.5]}
2... Nc6 {[%clk 0:02:58.8]} 3. d4 {[%clk 0:03:00.2]} 3... cxd4 {[%clk
0:02:59.7]} 4. Nxd4 {[%clk 0:02:59.9]} 4... g6 {[%clk 0:02:58.2]} 5. Nc3 {[%clk
0:02:59.6]} 5... Bg7 {[%clk 0:02:53.7]} 6. Be3 {[%clk 0:02:59.6]} 6... Nf6
{[%clk 0:02:53.3]} 7. Be2 {[%clk 0:02:58.8]} 7... O-O {[%clk 0:02:51.6]} 8. O-O
{[%clk 0:02:51.4]} 8... d6 {[%clk 0:02:38.4]} 9. f4 {[%clk 0:02:47.9]} 9... d5
{[%clk 0:02:38.4]} 10. exd5 {[%clk 0:02:42]} 10... Nxd5 {[%clk 0:02:39.3]} 11.
Nxd5 {[%clk 0:02:41.6]} 11... Qxd5 {[%clk 0:02:40.2]} 12. Nxc6 {[%clk
0:02:41.8]} 12... Qxc6 {[%clk 0:02:41.1]} 13. Bf3 {[%clk 0:02:41.1]} 13... Qe6
{[%clk 0:02:35.6]} 14. Bd4 {[%clk 0:02:36.5]} 14... Rd8 {[%clk 0:02:34]} 15. c3
{[%clk 0:02:26.3]} 15... Bxd4+ {[%clk 0:02:28.3]} 16. cxd4 {[%clk 0:02:23.7]}
16... Bd7 {[%clk 0:02:26.8]} 17. Re1 {[%clk 0:02:00.7]} 17... Qd6 {[%clk
0:02:22.1]} 18. g3 {[%clk 0:01:47.6]} 18... Be6 {[%clk 0:02:03.4]} 19. d5 {[%clk
0:01:40]} 19... Bd7 {[%clk 0:01:57.8]} 20. b3 {[%clk 0:01:01.4]} 20... Rac8
{[%clk 0:01:46.1]} 21. Qe2 {[%clk 0:00:59.2]} 21... Rc3 {[%clk 0:01:39.6]} 22.
Kg2 {[%clk 0:00:57]} 22... Kf8 {[%clk 0:01:17.4]} 23. Qb2 {[%clk 0:00:49.4]}
23... Rdc8 {[%clk 0:01:12.6]} 24. Rac1 {[%clk 0:00:44.6]} 24... Qf6 {[%clk
0:01:11.7]} 25. Rxc3 {[%clk 0:00:30.2]} 25... Rxc3 {[%clk 0:01:12.6]} 26. Qf2
{[%clk 0:00:19.5]} 26... Bf5 {[%clk 0:01:08.6]} 27. g4 {[%clk 0:00:19]} 27...
Bd3 {[%clk 0:01:05.3]} 28. Qxa7 {[%clk 0:00:16.9]} 28... Qxf4 {[%clk 0:01:04.1]}
29. Qa8+ {[%clk 0:00:17.1]} 29... Kg7 {[%clk 0:01:04]} 30. Qxb7 {[%clk
0:00:14.4]} 30... Rc2+ {[%clk 0:01:02.7]} 31. Kg1 {[%clk 0:00:13.5]} 31... Qxf3
{[%clk 0:01:02.2]} 32. Qxe7 {[%clk 0:00:08.3]} 32... Qg2# {[%clk 0:01:02]} 0-1

[Event "*** Titled Tuesday Blitz"]
[Site "Chess.com"]
[Date "2020.11.03"]
[Round "10"]
[White "AliKa2810"]
[Black "Das_Virus_2020"]
[Result "1-0"]
[WhiteElo "2566"]
[BlackElo "2421"]
[TimeControl "180+1"]
[EndTime "11:58:37 PST"]
[Termination "AliKa2810 won by resignation"]

1. c4 {[%clk 0:03:00.9]} 1... Nf6 {[%clk 0:02:56]} 2. Nc3 {[%clk 0:03:01]} 2...
c5 {[%clk 0:02:54.9]} 3. g3 {[%clk 0:03:00.6]} 3... e6 {[%clk 0:02:35.7]} 4. Bg2
{[%clk 0:02:59.6]} 4... d6 {[%clk 0:02:35.3]} 5. Nf3 {[%clk 0:02:56.6]} 5... a6
{[%clk 0:02:35.3]} 6. O-O {[%clk 0:02:54]} 6... Be7 {[%clk 0:02:32.8]} 7. d4
{[%clk 0:02:53.3]} 7... cxd4 {[%clk 0:02:32.2]} 8. Nxd4 {[%clk 0:02:54.2]} 8...
Nbd7 {[%clk 0:02:29.8]} 9. b3 {[%clk 0:02:46.3]} 9... Qc7 {[%clk 0:02:28.9]} 10.
Bb2 {[%clk 0:02:46.6]} 10... Ne5 {[%clk 0:02:24.9]} 11. Qd2 {[%clk 0:02:46.1]}
11... Bd7 {[%clk 0:02:20.5]} 12. Rac1 {[%clk 0:02:43.7]} 12... O-O {[%clk
0:02:18.8]} 13. f4 {[%clk 0:02:40.1]} 13... Ng6 {[%clk 0:02:17.9]} 14. h3 {[%clk
0:02:14.1]} 14... Rac8 {[%clk 0:02:15.4]} 15. f5 {[%clk 0:02:06.2]} 15... Ne5
{[%clk 0:02:13.7]} 16. g4 {[%clk 0:02:05.8]} 16... h6 {[%clk 0:02:08.2]} 17. Rf2
{[%clk 0:01:56.7]} 17... Qb6 {[%clk 0:01:03.7]} 18. e3 {[%clk 0:01:53.5]} 18...
Rfd8 {[%clk 0:00:54.9]} 19. Rcf1 {[%clk 0:01:52]} 19... Qa7 {[%clk 0:00:43.1]}
20. Kh1 {[%clk 0:01:46]} 20... b5 {[%clk 0:00:42.4]} 21. fxe6 {[%clk 0:01:40.5]}
21... fxe6 {[%clk 0:00:40.2]} 22. cxb5 {[%clk 0:01:37.6]} 22... axb5 {[%clk
0:00:39.8]} 23. Ndxb5 {[%clk 0:01:36.8]} 23... Qb6 {[%clk 0:00:36.4]} 24. Nd4
{[%clk 0:01:31.5]} 24... Nc6 {[%clk 0:00:34.6]} 25. Rxf6 {[%clk 0:01:18.8]}
25... gxf6 {[%clk 0:00:32]} 26. Ne4 {[%clk 0:01:17.3]} 26... Ne5 {[%clk
0:00:28.9]} 27. Nxf6+ {[%clk 0:01:14.9]} 27... Bxf6 {[%clk 0:00:28.6]} 28. Rxf6
{[%clk 0:01:15.8]} 28... Kg7 {[%clk 0:00:28.8]} 29. Rxe6 {[%clk 0:00:55.4]}
29... Rf8 {[%clk 0:00:26.8]} 30. Rxd6 {[%clk 0:00:50.6]} 30... Qc5 {[%clk
0:00:20.5]} 31. Rxd7+ {[%clk 0:00:49.2]} 1-0

[Event "*** Titled Tuesday Blitz"]
[Site "Chess.com"]
[Date "2020.11.03"]
[Round "10"]
[White "Dinamo3"]
[Black "Jenia84"]
[Result "0-1"]
[WhiteElo "2408"]
[BlackElo "2336"]
[TimeControl "180+1"]
[EndTime "11:58:38 PST"]
[Termination "Jenia84 won by resignation"]

1. e4 {[%clk 0:03:00.9]} 1... e5 {[%clk 0:02:59.4]} 2. Nf3 {[%clk 0:03:00.9]}
2... Nc6 {[%clk 0:02:56.1]} 3. Bc4 {[%clk 0:03:01.1]} 3... Bc5 {[%clk
0:02:54.9]} 4. O-O {[%clk 0:03:01]} 4... Nf6 {[%clk 0:02:53.6]} 5. d3 {[%clk
0:02:59.8]} 5... O-O {[%clk 0:02:51.9]} 6. Bb3 {[%clk 0:02:50.8]} 6... d5 {[%clk
0:02:49.8]} 7. exd5 {[%clk 0:02:50.8]} 7... Nxd5 {[%clk 0:02:49]} 8. h3 {[%clk
0:02:51.3]} 8... h6 {[%clk 0:02:25.6]} 9. Re1 {[%clk 0:02:51.2]} 9... Re8 {[%clk
0:02:24]} 10. Nbd2 {[%clk 0:02:51.1]} 10... Bf5 {[%clk 0:02:05.9]} 11. Nc4
{[%clk 0:02:39.7]} 11... e4 {[%clk 0:02:02.3]} 12. dxe4 {[%clk 0:02:27.5]} 12...
Rxe4 {[%clk 0:01:55.1]} 13. Rxe4 {[%clk 0:01:11.5]} 13... Bxe4 {[%clk
0:01:53.4]} 14. Qe2 {[%clk 0:00:49.7]} 14... Bxf3 {[%clk 0:01:39.9]} 15. Qxf3
{[%clk 0:00:49.7]} 15... Nd4 {[%clk 0:01:40]} 16. Qd3 {[%clk 0:00:46.4]} 16...
Qf6 {[%clk 0:01:21.8]} 17. Ne3 {[%clk 0:00:17.8]} 17... Nf4 {[%clk 0:01:02.9]}
18. Qe4 {[%clk 0:00:15.3]} 18... Nfe2+ {[%clk 0:00:45.2]} 19. Kh2 {[%clk
0:00:13.6]} 19... Bd6+ {[%clk 0:00:39.1]} 20. Kh1 {[%clk 0:00:10.5]} 20... Qxf2
{[%clk 0:00:36]} 21. Nf5 {[%clk 0:00:04.1]} 0-1

[Event "*** Titled Tuesday Blitz"]
[Site "Chess.com"]
[Date "2020.11.03"]
[Round "10"]
[White "Kaslask"]
[Black "keepitcoming"]
[Result "1-0"]
[WhiteElo "2310"]
[BlackElo "2495"]
[TimeControl "180+1"]
[EndTime "11:58:38 PST"]
[Termination "Kaslask won by resignation"]

1. d4 {[%clk 0:03:00.9]} 1... d5 {[%clk 0:02:10.1]} 2. c4 {[%clk 0:02:59.9]}
2... e6 {[%clk 0:02:10.2]} 3. Nc3 {[%clk 0:02:59.6]} 3... c6 {[%clk 0:02:10.7]}
4. e3 {[%clk 0:02:51.1]} 4... Nf6 {[%clk 0:02:08.9]} 5. Qc2 {[%clk 0:02:49.3]}
5... Bd6 {[%clk 0:02:05.3]} 6. Nf3 {[%clk 0:02:48.6]} 6... O-O {[%clk
0:02:04.1]} 7. b3 {[%clk 0:02:43]} 7... a6 {[%clk 0:01:59.4]} 8. Be2 {[%clk
0:02:41.7]} 8... Nbd7 {[%clk 0:01:54.8]} 9. O-O {[%clk 0:02:41]} 9... b5 {[%clk
0:01:50.1]} 10. e4 {[%clk 0:02:39.6]} 10... dxe4 {[%clk 0:01:46.9]} 11. Nxe4
{[%clk 0:02:38.9]} 11... Be7 {[%clk 0:01:46.9]} 12. Bf4 {[%clk 0:02:36.3]} 12...
c5 {[%clk 0:01:27.6]} 13. Nd6 {[%clk 0:02:27.2]} 13... cxd4 {[%clk 0:01:20.4]}
14. Nxd4 {[%clk 0:02:18.5]} 14... Bxd6 {[%clk 0:00:55.5]} 15. Bxd6 {[%clk
0:02:16.4]} 15... Re8 {[%clk 0:00:56.4]} 16. c5 {[%clk 0:02:09.6]} 16... Ne5
{[%clk 0:00:50.4]} 17. f4 {[%clk 0:02:02.6]} 17... Ng6 {[%clk 0:00:39.7]} 18.
Bf3 {[%clk 0:02:00.8]} 18... Ra7 {[%clk 0:00:30.8]} 19. Nc6 {[%clk 0:02:00.3]}
19... Qd7 {[%clk 0:00:30.9]} 20. Na5 {[%clk 0:01:56.6]} 20... Nd5 {[%clk
0:00:23.9]} 21. f5 {[%clk 0:01:53.6]} 21... Ne3 {[%clk 0:00:22.5]} 22. Qd3
{[%clk 0:01:47.8]} 22... Nxf5 {[%clk 0:00:22.1]} 23. Bc6 {[%clk 0:01:41.6]}
23... Qd8 {[%clk 0:00:20.1]} 24. Bxe8 {[%clk 0:01:37]} 24... Qxe8 {[%clk
0:00:19.4]} 25. Rae1 {[%clk 0:01:34.7]} 25... Rd7 {[%clk 0:00:18.2]} 26. Rxf5
{[%clk 0:01:32.9]} 26... Nh4 {[%clk 0:00:14.8]} 27. Rf2 {[%clk 0:01:30.7]} 27...
g6 {[%clk 0:00:12.8]} 28. Qd4 {[%clk 0:01:29.3]} 28... Nf5 {[%clk 0:00:12.4]}
29. Qe5 {[%clk 0:01:23.9]} 29... f6 {[%clk 0:00:12.1]} 30. Qxf6 {[%clk
0:01:22.7]} 30... Nxd6 {[%clk 0:00:12.2]} 31. cxd6 {[%clk 0:01:18.4]} 31... Rxd6
{[%clk 0:00:13.1]} 32. Ref1 {[%clk 0:01:17.2]} 32... Bd7 {[%clk 0:00:08.8]} 33.
Nb7 {[%clk 0:01:11.2]} 33... Rd3 {[%clk 0:00:06.9]} 34. Nd8 {[%clk 0:01:07.5]}
34... Bc6 {[%clk 0:00:06]} 35. Qf8+ {[%clk 0:01:06]} 35... Qxf8 {[%clk
0:00:05.3]} 36. Rxf8+ {[%clk 0:01:05.1]} 36... Kg7 {[%clk 0:00:06.2]} 1-0

[Event "*** Titled Tuesday Blitz"]
[Site "Chess.com"]
[Date "2020.11.03"]
[Round "10"]
[White "RD4ever"]
[Black "frederiksvane"]
[Result "1-0"]
[WhiteElo "2838"]
[BlackElo "2647"]
[TimeControl "180+1"]
[EndTime "11:58:40 PST"]
[Termination "RD4ever won by resignation"]

1. d4 {[%clk 0:03:00.9]} 1... Nf6 {[%clk 0:02:56.7]} 2. c4 {[%clk 0:03:00.6]}
2... e6 {[%clk 0:02:56.3]} 3. Nf3 {[%clk 0:02:56.9]} 3... b6 {[%clk 0:02:53.1]}
4. a3 {[%clk 0:02:56.8]} 4... Bb7 {[%clk 0:02:52.2]} 5. Bf4 {[%clk 0:02:56.4]}
5... d5 {[%clk 0:02:50]} 6. cxd5 {[%clk 0:02:55.4]} 6... Nxd5 {[%clk 0:02:48.8]}
7. Bg3 {[%clk 0:02:53.5]} 7... Be7 {[%clk 0:02:36.3]} 8. e4 {[%clk 0:02:43.9]}
8... Nf6 {[%clk 0:02:33.5]} 9. e5 {[%clk 0:02:43.6]} 9... Nd5 {[%clk 0:02:30.4]}
10. Bd3 {[%clk 0:02:38.9]} 10... O-O {[%clk 0:02:14.1]} 11. Nbd2 {[%clk
0:02:15.7]} 11... Ba6 {[%clk 0:01:59.9]} 12. Ne4 {[%clk 0:02:11.8]} 12... Bxd3
{[%clk 0:01:58.1]} 13. Qxd3 {[%clk 0:02:12.7]} 13... Nd7 {[%clk 0:01:56.3]} 14.
h4 {[%clk 0:02:06.9]} 14... h6 {[%clk 0:01:41.8]} 15. O-O {[%clk 0:01:59.6]}
15... c5 {[%clk 0:01:38.1]} 16. Rfd1 {[%clk 0:01:52.1]} 16... cxd4 {[%clk
0:01:31.5]} 17. Qxd4 {[%clk 0:01:48.2]} 17... Nc5 {[%clk 0:01:23.1]} 18. Nxc5
{[%clk 0:01:42.3]} 18... Bxc5 {[%clk 0:01:07.6]} 19. Qg4 {[%clk 0:01:40.7]}
19... Qe8 {[%clk 0:00:41]} 20. Nd2 {[%clk 0:01:32.8]} 20... Qb5 {[%clk
0:00:31.5]} 21. b4 {[%clk 0:01:24.1]} 21... Be7 {[%clk 0:00:26.6]} 22. Ne4
{[%clk 0:01:03.3]} 22... Rac8 {[%clk 0:00:14.8]} 23. Rd4 {[%clk 0:00:54.2]}
23... Rc4 {[%clk 0:00:13.2]} 24. Rxc4 {[%clk 0:00:54.1]} 24... Qxc4 {[%clk
0:00:13.3]} 25. Nf6+ {[%clk 0:00:53.8]} 25... Nxf6 {[%clk 0:00:06.8]} 26. Qxc4
{[%clk 0:00:54.7]} 26... Nd5 {[%clk 0:00:07.2]} 27. Qa6 {[%clk 0:00:52]} 1-0

[Event "*** Titled Tuesday Blitz"]
[Site "Chess.com"]
[Date "2020.11.03"]
[Round "10"]
[White "Sergey85Rodchenkov"]
[Black "ClydeHillKid"]
[Result "1-0"]
[WhiteElo "2451"]
[BlackElo "2352"]
[TimeControl "180+1"]
[EndTime "11:58:40 PST"]
[Termination "Sergey85Rodchenkov won by checkmate"]

1. e4 {[%clk 0:03:00.9]} 1... e6 {[%clk 0:02:59.6]} 2. d4 {[%clk 0:02:59.6]}
2... d5 {[%clk 0:02:59.7]} 3. Nd2 {[%clk 0:02:59.6]} 3... Nf6 {[%clk 0:02:59.7]}
4. e5 {[%clk 0:02:59.3]} 4... Nfd7 {[%clk 0:02:59.9]} 5. Qg4 {[%clk 0:02:59.7]}
5... c5 {[%clk 0:02:59]} 6. c3 {[%clk 0:02:59.8]} 6... Nc6 {[%clk 0:02:58.9]} 7.
Bd3 {[%clk 0:02:59.9]} 7... Ndxe5 {[%clk 0:02:41.5]} 8. dxe5 {[%clk 0:02:59]}
8... Nxe5 {[%clk 0:02:42.4]} 9. Qh3 {[%clk 0:02:57.1]} 9... c4 {[%clk
0:02:30.1]} 10. Bc2 {[%clk 0:02:56.5]} 10... Bc5 {[%clk 0:02:30.2]} 11. Ne2
{[%clk 0:02:52.7]} 11... Qf6 {[%clk 0:02:05.7]} 12. O-O {[%clk 0:02:46.6]} 12...
h5 {[%clk 0:01:54.9]} 13. Nd4 {[%clk 0:02:44.7]} 13... Ng4 {[%clk 0:01:52.4]}
14. Qf3 {[%clk 0:02:39.4]} 14... Bxd4 {[%clk 0:01:43.2]} 15. cxd4 {[%clk
0:02:38.7]} 15... Qxd4 {[%clk 0:01:40.8]} 16. h3 {[%clk 0:02:38.6]} 16... Ne5
{[%clk 0:01:29.8]} 17. Qe2 {[%clk 0:02:37.6]} 17... Bd7 {[%clk 0:01:16.5]} 18.
Re1 {[%clk 0:02:36.6]} 18... Nc6 {[%clk 0:01:01.3]} 19. Nf3 {[%clk 0:02:35.2]}
19... Qc5 {[%clk 0:00:56.7]} 20. Bf4 {[%clk 0:02:26.6]} 20... O-O-O {[%clk
0:00:51.7]} 21. Rad1 {[%clk 0:02:09.3]} 21... f6 {[%clk 0:00:49.3]} 22. Bg6
{[%clk 0:02:06.3]} 22... e5 {[%clk 0:00:44.6]} 23. Bh2 {[%clk 0:02:02.6]} 23...
Ne7 {[%clk 0:00:31.8]} 24. Bf7 {[%clk 0:01:54.1]} 24... e4 {[%clk 0:00:17.3]}
25. Rxd5 {[%clk 0:01:47.4]} 25... Nxd5 {[%clk 0:00:15.9]} 26. Qxe4 {[%clk
0:01:45.6]} 26... Nc7 {[%clk 0:00:09.9]} 27. Qf4 {[%clk 0:01:35.7]} 27... Rhf8
{[%clk 0:00:07.1]} 28. Bxh5 {[%clk 0:01:31]} 28... g5 {[%clk 0:00:05.7]} 29. Qg3
{[%clk 0:01:30.7]} 29... Qc6 {[%clk 0:00:02.8]} 30. Rc1 {[%clk 0:01:24.3]} 30...
b5 {[%clk 0:00:02.5]} 31. b3 {[%clk 0:01:16.6]} 31... Kb7 {[%clk 0:00:02.9]} 32.
bxc4 {[%clk 0:01:16]} 32... bxc4 {[%clk 0:00:03.8]} 33. Rb1+ {[%clk 0:01:13.4]}
33... Kc8 {[%clk 0:00:04.1]} 34. Nd4 {[%clk 0:01:12.5]} 34... Qc5 {[%clk
0:00:03.7]} 35. Bf3 {[%clk 0:01:09]} 35... Bc6 {[%clk 0:00:02.7]} 36. Qxc7#
{[%clk 0:01:08.3]} 1-0

[Event "*** Titled Tuesday Blitz"]
[Site "Chess.com"]
[Date "2020.11.03"]
[Round "10"]
[White "Chuchofrio1"]
[Black "Atousa1"]
[Result "0-1"]
[WhiteElo "2341"]
[BlackElo "2425"]
[TimeControl "180+1"]
[EndTime "11:58:47 PST"]
[Termination "Atousa1 won by resignation"]

1. e4 {[%clk 0:02:59.9]} 1... e5 {[%clk 0:02:13.6]} 2. Nf3 {[%clk 0:02:57.5]}
2... Nf6 {[%clk 0:02:12.1]} 3. Nc3 {[%clk 0:02:57]} 3... Nc6 {[%clk 0:02:10.9]}
4. Bc4 {[%clk 0:02:57.4]} 4... Bc5 {[%clk 0:02:09.8]} 5. O-O {[%clk 0:02:57.3]}
5... d6 {[%clk 0:02:09.8]} 6. d3 {[%clk 0:02:56.9]} 6... h6 {[%clk 0:02:09.2]}
7. Be3 {[%clk 0:02:57.3]} 7... O-O {[%clk 0:02:06.5]} 8. h3 {[%clk 0:02:57.6]}
8... Re8 {[%clk 0:02:05.5]} 9. a3 {[%clk 0:02:57.9]} 9... a6 {[%clk 0:02:05.1]}
10. b4 {[%clk 0:02:57.9]} 10... Ba7 {[%clk 0:02:02.9]} 11. Bxa7 {[%clk
0:02:58.5]} 11... Rxa7 {[%clk 0:02:00.7]} 12. Re1 {[%clk 0:02:56.2]} 12... Ra8
{[%clk 0:01:59.9]} 13. d4 {[%clk 0:02:56.4]} 13... exd4 {[%clk 0:01:57.1]} 14.
Nxd4 {[%clk 0:02:57.3]} 14... Ne5 {[%clk 0:01:56.9]} 15. Bb3 {[%clk 0:02:50]}
15... c5 {[%clk 0:01:55.1]} 16. Nf3 {[%clk 0:02:32.5]} 16... c4 {[%clk
0:01:50.4]} 17. Ba2 {[%clk 0:02:24.2]} 17... b5 {[%clk 0:01:49.9]} 18. Nxe5
{[%clk 0:02:17.3]} 18... dxe5 {[%clk 0:01:50]} 19. a4 {[%clk 0:02:15]} 19... Bd7
{[%clk 0:01:46.9]} 20. Bb1 {[%clk 0:02:07.2]} 20... Qe7 {[%clk 0:01:43.6]} 21.
axb5 {[%clk 0:01:57.5]} 21... axb5 {[%clk 0:01:44.5]} 22. Rxa8 {[%clk
0:01:57.9]} 22... Rxa8 {[%clk 0:01:43.9]} 23. Nd5 {[%clk 0:01:58.8]} 23... Nxd5
{[%clk 0:01:37.9]} 24. Qxd5 {[%clk 0:01:59.7]} 24... Ra1 {[%clk 0:01:36.1]} 25.
c3 {[%clk 0:01:59]} 25... g6 {[%clk 0:01:32.6]} 26. Rd1 {[%clk 0:01:58.7]} 26...
Be8 {[%clk 0:01:28.1]} 27. Bc2 {[%clk 0:01:57.3]} 27... Ra3 {[%clk 0:01:21.8]}
28. Qd2 {[%clk 0:01:50]} 28... Qg5 {[%clk 0:01:20.8]} 29. Qe1 {[%clk 0:01:40.6]}
29... Kg7 {[%clk 0:01:18.3]} 30. Rd5 {[%clk 0:01:18.1]} 30... Bc6 {[%clk
0:01:17.9]} 31. Rd6 {[%clk 0:01:15.3]} 31... Be8 {[%clk 0:01:11.3]} 32. Rd5
{[%clk 0:01:14.6]} 32... Ra2 {[%clk 0:01:06.3]} 33. Rd2 {[%clk 0:01:07.7]} 33...
Bc6 {[%clk 0:01:01.1]} 34. Kf1 {[%clk 0:01:00.3]} 34... Qf4 {[%clk 0:00:56.8]}
35. f3 {[%clk 0:00:55.5]} 35... Bxe4 {[%clk 0:00:46.7]} 36. Qxe4 {[%clk
0:00:51.5]} 36... Qxd2 {[%clk 0:00:46.6]} 37. Qxe5+ {[%clk 0:00:52]} 37... Kh7
{[%clk 0:00:47]} 38. Bxg6+ {[%clk 0:00:38.4]} 38... Kxg6 {[%clk 0:00:43.8]} 39.
Qe4+ {[%clk 0:00:35.4]} 39... Kf6 {[%clk 0:00:43.6]} 40. Qc6+ {[%clk 0:00:33.9]}
40... Kg7 {[%clk 0:00:42.5]} 0-1

[Event "*** Titled Tuesday Blitz"]
[Site "Chess.com"]
[Date "2020.11.03"]
[Round "10"]
[White "Ladislav1969"]
[Black "Omk124"]
[Result "0-1"]
[WhiteElo "2341"]
[BlackElo "2424"]
[TimeControl "180+1"]
[EndTime "11:58:53 PST"]
[Termination "Omk124 won by resignation"]

1. e4 {[%clk 0:03:00.9]} 1... g6 {[%clk 0:02:59.9]} 2. d4 {[%clk 0:03:00.9]}
2... Bg7 {[%clk 0:02:59.8]} 3. Nc3 {[%clk 0:03:01.4]} 3... c6 {[%clk 0:02:59.9]}
4. f4 {[%clk 0:02:58.6]} 4... d5 {[%clk 0:03:00.1]} 5. e5 {[%clk 0:02:59]} 5...
Nh6 {[%clk 0:03:00.5]} 6. Nf3 {[%clk 0:02:58]} 6... O-O {[%clk 0:03:00.7]} 7.
Bd3 {[%clk 0:02:55.4]} 7... f6 {[%clk 0:03:01.2]} 8. Ne2 {[%clk 0:02:51.5]} 8...
Bg4 {[%clk 0:03:01.2]} 9. O-O {[%clk 0:02:47.3]} 9... Nd7 {[%clk 0:03:00.5]} 10.
h3 {[%clk 0:02:24]} 10... Bxf3 {[%clk 0:03:00.6]} 11. Rxf3 {[%clk 0:02:24]}
11... fxe5 {[%clk 0:02:53.8]} 12. dxe5 {[%clk 0:02:24.2]} 12... e6 {[%clk
0:02:53.2]} 13. c3 {[%clk 0:02:11.1]} 13... Qe7 {[%clk 0:02:50.1]} 14. Be3
{[%clk 0:02:05.8]} 14... Nf5 {[%clk 0:02:45.9]} 15. Qd2 {[%clk 0:02:04.3]} 15...
Nxe3 {[%clk 0:02:44.5]} 16. Qxe3 {[%clk 0:02:03.8]} 16... b6 {[%clk 0:02:38.3]}
17. Raf1 {[%clk 0:02:01.5]} 17... Rf7 {[%clk 0:02:36.9]} 18. Nd4 {[%clk
0:01:56.3]} 18... c5 {[%clk 0:02:30.2]} 19. Nb5 {[%clk 0:01:56.2]} 19... c4
{[%clk 0:02:23.2]} 20. Bc2 {[%clk 0:01:54.7]} 20... Nc5 {[%clk 0:02:23.6]} 21.
Nd6 {[%clk 0:01:48.2]} 21... Rff8 {[%clk 0:02:23.9]} 22. g4 {[%clk 0:01:44.1]}
22... Rad8 {[%clk 0:02:23.1]} 23. Kg2 {[%clk 0:01:41.7]} 23... Bh6 {[%clk
0:02:09.1]} 24. Qd4 {[%clk 0:01:35.1]} 24... Bg7 {[%clk 0:01:58.6]} 25. Re1
{[%clk 0:01:28.1]} 25... Qh4 {[%clk 0:01:46.9]} 26. Re2 {[%clk 0:01:23.7]} 26...
Rxd6 {[%clk 0:01:45.7]} 27. f5 {[%clk 0:01:03.3]} 27... gxf5 {[%clk 0:01:40.9]}
28. gxf5 {[%clk 0:01:03.6]} 28... Ne4 {[%clk 0:00:43.9]} 29. Bxe4 {[%clk
0:00:54.8]} 29... dxe4 {[%clk 0:00:44.8]} 30. Qxe4 {[%clk 0:00:35.4]} 30... Qxe4
{[%clk 0:00:44.6]} 31. Rxe4 {[%clk 0:00:35.8]} 31... Rd2+ {[%clk 0:00:44.9]} 32.
Kg3 {[%clk 0:00:33.1]} 32... Rxf5 {[%clk 0:00:44.2]} 33. Rxf5 {[%clk 0:00:25.3]}
33... exf5 {[%clk 0:00:45.1]} 34. Rxc4 {[%clk 0:00:25.7]} 34... Bxe5+ {[%clk
0:00:44.9]} 35. Kf3 {[%clk 0:00:25.6]} 35... Rxb2 {[%clk 0:00:45.2]} 36. Rc8+
{[%clk 0:00:23.2]} 36... Kf7 {[%clk 0:00:45.7]} 37. Ra8 {[%clk 0:00:22.9]} 37...
Rxa2 {[%clk 0:00:45.8]} 0-1

[Event "*** Titled Tuesday Blitz"]
[Site "Chess.com"]
[Date "2020.11.03"]
[Round "10"]
[White "kuban1991"]
[Black "DenLaz"]
[Result "0-1"]
[WhiteElo "2886"]
[BlackElo "2752"]
[TimeControl "180+1"]
[EndTime "11:58:55 PST"]
[Termination "DenLaz won on time"]

1. Nf3 {[%clk 0:03:00.9]} 1... d5 {[%clk 0:02:59.7]} 2. g3 {[%clk 0:03:01.1]}
2... c6 {[%clk 0:03:00.3]} 3. Bg2 {[%clk 0:03:01.3]} 3... Bf5 {[%clk 0:03:01]}
4. O-O {[%clk 0:03:01.3]} 4... e6 {[%clk 0:03:01.7]} 5. c4 {[%clk 0:03:01.8]}
5... dxc4 {[%clk 0:03:00.7]} 6. Nc3 {[%clk 0:02:44.3]} 6... Nd7 {[%clk
0:02:55.3]} 7. b3 {[%clk 0:02:19.3]} 7... cxb3 {[%clk 0:02:53]} 8. axb3 {[%clk
0:02:20.2]} 8... Ngf6 {[%clk 0:02:48.8]} 9. d3 {[%clk 0:02:18.6]} 9... Be7
{[%clk 0:02:47.4]} 10. Nh4 {[%clk 0:02:14.6]} 10... O-O {[%clk 0:02:44]} 11.
Nxf5 {[%clk 0:02:14.1]} 11... exf5 {[%clk 0:02:44.9]} 12. Bb2 {[%clk 0:02:14.1]}
12... Re8 {[%clk 0:02:43.2]} 13. Qc2 {[%clk 0:02:14.1]} 13... Nb6 {[%clk
0:02:40.7]} 14. Rfd1 {[%clk 0:02:10.9]} 14... Nfd5 {[%clk 0:02:38.1]} 15. Nxd5
{[%clk 0:02:06.4]} 15... Nxd5 {[%clk 0:02:38.6]} 16. e4 {[%clk 0:02:03.7]} 16...
Nf6 {[%clk 0:02:27.2]} 17. exf5 {[%clk 0:01:59.6]} 17... Qd7 {[%clk 0:02:26.4]}
18. Be4 {[%clk 0:01:51.3]} 18... a6 {[%clk 0:02:23.3]} 19. Qc3 {[%clk
0:01:41.6]} 19... Rad8 {[%clk 0:02:21.5]} 20. h3 {[%clk 0:01:41]} 20... Bf8
{[%clk 0:02:20.8]} 21. Qc2 {[%clk 0:01:38.2]} 21... Qe7 {[%clk 0:02:19.7]} 22.
Re1 {[%clk 0:01:36.7]} 22... Qd6 {[%clk 0:02:19.2]} 23. Kg2 {[%clk 0:01:34.7]}
23... Nxe4 {[%clk 0:02:14]} 24. dxe4 {[%clk 0:01:33.1]} 24... Qd3 {[%clk
0:02:14.5]} 25. Qc4 {[%clk 0:01:14.6]} 25... Qxc4 {[%clk 0:02:11.6]} 26. bxc4
{[%clk 0:01:15.5]} 26... Rd2 {[%clk 0:02:11.6]} 27. Ba3 {[%clk 0:01:13]} 27...
Rd4 {[%clk 0:02:04.5]} 28. Bxf8 {[%clk 0:01:06.1]} 28... Kxf8 {[%clk 0:02:05.4]}
29. Reb1 {[%clk 0:01:06.2]} 29... Re7 {[%clk 0:02:01.7]} 30. f3 {[%clk
0:01:03.5]} 30... Rxc4 {[%clk 0:02:01]} 31. g4 {[%clk 0:01:04]} 31... Rc5 {[%clk
0:01:55.9]} 32. Kg3 {[%clk 0:00:56.7]} 32... Rd7 {[%clk 0:01:53.8]} 33. g5
{[%clk 0:00:55.9]} 33... Ke7 {[%clk 0:01:51.6]} 34. h4 {[%clk 0:00:50.2]} 34...
Rb5 {[%clk 0:01:51.3]} 35. Rxb5 {[%clk 0:00:44.2]} 35... axb5 {[%clk 0:01:52.2]}
36. Rb1 {[%clk 0:00:41.8]} 36... Rd4 {[%clk 0:01:50.5]} 37. Kf4 {[%clk
0:00:40.4]} 37... b4 {[%clk 0:01:48.5]} 38. Ke5 {[%clk 0:00:36.8]} 38... c5
{[%clk 0:01:48.7]} 39. f6+ {[%clk 0:00:34.9]} 39... gxf6+ {[%clk 0:01:48.7]} 40.
gxf6+ {[%clk 0:00:35.8]} 40... Kd7 {[%clk 0:01:49.4]} 41. f4 {[%clk 0:00:25.3]}
41... Rd3 {[%clk 0:01:46.9]} 42. Kf5 {[%clk 0:00:12.1]} 42... b3 {[%clk
0:01:45.7]} 43. e5 {[%clk 0:00:11.9]} 43... c4 {[%clk 0:01:44.7]} 44. Ke4 {[%clk
0:00:07.9]} 44... Rd2 {[%clk 0:01:42.1]} 45. f5 {[%clk 0:00:06]} 45... b2 {[%clk
0:01:38.7]} 46. Rg1 {[%clk 0:00:02.3]} 46... c3 {[%clk 0:01:36.9]} 47. e6+
{[%clk 0:00:02]} 47... fxe6 {[%clk 0:01:31.4]} 0-1